[Event "Early-Titled-Tuesday-Blitz-December-26-2023"]
[Site "Chess.com"]
[Date "2023.12.26"]
[Round "5"]
[White "Alex_Banzea"]
[Black "zverr1"]
[Result "1-0"]
[WhiteElo "2649"]
[BlackElo "2477"]
[TimeControl "180+1"]
[EndTime "8:56:48 PST"]
[Termination "Alex_Banzea won by resignation"]

1. d4 {[%clk 0:03:00.9]} 1... Nf6 {[%clk 0:02:59.9]} 2. Nc3 {[%clk 0:03:01.4]}
2... d5 {[%clk 0:02:59.6]} 3. Bf4 {[%clk 0:03:01.3]} 3... g6 {[%clk 0:02:58]} 4.
e3 {[%clk 0:03:01.6]} 4... Bg7 {[%clk 0:02:57.6]} 5. h4 {[%clk 0:03:02.1]} 5...
h6 {[%clk 0:02:57.4]} 6. Nf3 {[%clk 0:03:00.6]} 6... c6 {[%clk 0:02:53.8]} 7.
Ne5 {[%clk 0:02:55.7]} 7... Nbd7 {[%clk 0:02:49.1]} 8. Bd3 {[%clk 0:02:51.5]}
8... Nxe5 {[%clk 0:02:45.6]} 9. Bxe5 {[%clk 0:02:50.4]} 9... h5 {[%clk
0:02:41.8]} 10. Qf3 {[%clk 0:02:38.3]} 10... O-O {[%clk 0:02:17.9]} 11. Qf4
{[%clk 0:02:15.3]} 11... Ng4 {[%clk 0:02:01.9]} 12. Bxg7 {[%clk 0:02:12.9]}
12... Kxg7 {[%clk 0:02:02.8]} 13. f3 {[%clk 0:02:05.4]} 13... Nf6 {[%clk
0:01:22]} 14. O-O-O {[%clk 0:02:03.1]} 14... Qd6 {[%clk 0:01:11.4]} 15. Ne2
{[%clk 0:01:35.3]} 15... Re8 {[%clk 0:01:04.7]} 16. Qxd6 {[%clk 0:01:27]} 16...
exd6 {[%clk 0:01:03.7]} 17. Kd2 {[%clk 0:01:27.9]} 17... Bd7 {[%clk 0:00:59.6]}
18. Nf4 {[%clk 0:01:28.2]} 18... Re7 {[%clk 0:00:55.2]} 19. Rde1 {[%clk
0:01:17]} 19... Rae8 {[%clk 0:00:54.4]} 20. a4 {[%clk 0:01:00.8]} 20... b6
{[%clk 0:00:40.3]} 21. a5 {[%clk 0:00:53.3]} 21... b5 {[%clk 0:00:39.3]} 22. b4
{[%clk 0:00:48.8]} 22... Bc8 {[%clk 0:00:35.9]} 23. c3 {[%clk 0:00:48]} 23...
Bd7 {[%clk 0:00:31.1]} 24. g3 {[%clk 0:00:46.6]} 24... Bc8 {[%clk 0:00:31]} 25.
Ng2 {[%clk 0:00:47.1]} 25... Bd7 {[%clk 0:00:29.1]} 26. Re2 {[%clk 0:00:40.7]}
26... Bc8 {[%clk 0:00:27.8]} 27. Ne1 {[%clk 0:00:41.3]} 27... Bd7 {[%clk
0:00:20.9]} 28. Bc2 {[%clk 0:00:36]} 28... Bc8 {[%clk 0:00:20.9]} 29. Bd1 {[%clk
0:00:31]} 29... Bd7 {[%clk 0:00:20.9]} 30. Nc2 {[%clk 0:00:31.8]} 30... Bc8
{[%clk 0:00:21]} 31. Ree1 {[%clk 0:00:32.5]} 31... Bd7 {[%clk 0:00:21.3]} 32.
Be2 {[%clk 0:00:33.2]} 32... Bc8 {[%clk 0:00:21.8]} 33. Bf1 {[%clk 0:00:33.9]}
33... Bd7 {[%clk 0:00:22.3]} 34. Bh3 {[%clk 0:00:34.6]} 34... Bxh3 {[%clk
0:00:21.8]} 35. Rxh3 {[%clk 0:00:35.5]} 35... Nd7 {[%clk 0:00:19]} 36. Rh2
{[%clk 0:00:28]} 36... f5 {[%clk 0:00:19]} 37. Ree2 {[%clk 0:00:22.7]} 37... Nf6
{[%clk 0:00:19.2]} 38. Ne1 {[%clk 0:00:22.1]} 38... Kf7 {[%clk 0:00:12.1]} 39.
Nd3 {[%clk 0:00:22.7]} 39... Kg7 {[%clk 0:00:12.3]} 40. Nf4 {[%clk 0:00:23.2]}
40... Kf7 {[%clk 0:00:12.8]} 41. Nh3 {[%clk 0:00:24]} 41... Kg7 {[%clk
0:00:12.7]} 42. Ng5 {[%clk 0:00:24.6]} 42... Kg8 {[%clk 0:00:10.7]} 43. Re1
{[%clk 0:00:25.2]} 43... Kg7 {[%clk 0:00:11]} 44. Rhe2 {[%clk 0:00:25.9]} 44...
Kg8 {[%clk 0:00:11.3]} 45. Kd3 {[%clk 0:00:26.1]} 45... Kg7 {[%clk 0:00:11.7]}
46. e4 {[%clk 0:00:26]} 46... dxe4+ {[%clk 0:00:10.5]} 47. fxe4 {[%clk
0:00:26.9]} 47... fxe4+ {[%clk 0:00:09.9]} 48. Nxe4 {[%clk 0:00:27.8]} 48...
Nxe4 {[%clk 0:00:05.1]} 49. Rxe4 {[%clk 0:00:28.7]} 49... Rxe4 {[%clk
0:00:05.8]} 50. Rxe4 {[%clk 0:00:29.6]} 50... Rxe4 {[%clk 0:00:06.5]} 51. Kxe4
{[%clk 0:00:30.5]} 51... Kf6 {[%clk 0:00:04.9]} 52. d5 {[%clk 0:00:30.5]} 52...
c5 {[%clk 0:00:05.4]} 53. c4 {[%clk 0:00:17]} 53... cxb4 {[%clk 0:00:03.7]} 54.
cxb5 {[%clk 0:00:16.8]} 54... b3 {[%clk 0:00:03.8]} 55. Kd3 {[%clk 0:00:17.5]}
55... Ke7 {[%clk 0:00:03.8]} 56. b6 {[%clk 0:00:13.4]} 56... axb6 {[%clk
0:00:03.1]} 57. a6 {[%clk 0:00:14]} 57... b2 {[%clk 0:00:03.4]} 58. Kc2 {[%clk
0:00:14.1]} 58... Kd7 {[%clk 0:00:03.7]} 59. a7 {[%clk 0:00:14.2]} 59... b1=Q+
{[%clk 0:00:03.5]} 60. Kxb1 {[%clk 0:00:13.9]} 60... Kc7 {[%clk 0:00:04.4]} 61.
a8=Q {[%clk 0:00:14.4]} 61... b5 {[%clk 0:00:04.4]} 62. Qc6+ {[%clk 0:00:14.8]}
1-0

[Event "Early-Titled-Tuesday-Blitz-December-26-2023"]
[Site "Chess.com"]
[Date "2023.12.26"]
[Round "5"]
[White "SCIM"]
[Black "Yeritsyaan"]
[Result "1-0"]
[WhiteElo "2523"]
[BlackElo "2645"]
[TimeControl "180+1"]
[EndTime "8:56:51 PST"]
[Termination "SCIM won by checkmate"]

1. d4 {[%clk 0:03:00.9]} 1... Nf6 {[%clk 0:02:59.4]} 2. c4 {[%clk 0:03:00]} 2...
g6 {[%clk 0:02:58.8]} 3. Nc3 {[%clk 0:03:00.3]} 3... Bg7 {[%clk 0:02:58.8]} 4.
e4 {[%clk 0:03:00.4]} 4... O-O {[%clk 0:02:59.5]} 5. Bg5 {[%clk 0:02:58.6]} 5...
c5 {[%clk 0:02:59.1]} 6. d5 {[%clk 0:02:55.7]} 6... d6 {[%clk 0:02:26.5]} 7. Qd2
{[%clk 0:02:45.3]} 7... a6 {[%clk 0:02:25]} 8. Nge2 {[%clk 0:02:31.5]} 8... b5
{[%clk 0:02:22.7]} 9. Ng3 {[%clk 0:02:28.4]} 9... b4 {[%clk 0:02:09.7]} 10. Nd1
{[%clk 0:02:25]} 10... a5 {[%clk 0:02:04.2]} 11. Be2 {[%clk 0:01:58.5]} 11... a4
{[%clk 0:02:03.4]} 12. Rc1 {[%clk 0:01:51.5]} 12... e6 {[%clk 0:01:56.4]} 13.
O-O {[%clk 0:01:49.2]} 13... exd5 {[%clk 0:01:53.2]} 14. exd5 {[%clk 0:01:48.7]}
14... Nbd7 {[%clk 0:01:50.9]} 15. h3 {[%clk 0:01:24.6]} 15... Re8 {[%clk
0:01:48.5]} 16. Re1 {[%clk 0:01:19.3]} 16... Ba6 {[%clk 0:01:42.1]} 17. Bf1
{[%clk 0:01:16.9]} 17... Qc7 {[%clk 0:01:34.4]} 18. Bf4 {[%clk 0:01:07.9]} 18...
Nb6 {[%clk 0:01:29.8]} 19. Ne3 {[%clk 0:01:00.9]} 19... Ne4 {[%clk 0:01:26.8]}
20. Nxe4 {[%clk 0:00:57.9]} 20... Rxe4 {[%clk 0:01:27.7]} 21. Bg3 {[%clk
0:00:55.9]} 21... Rae8 {[%clk 0:01:22.8]} 22. Ng4 {[%clk 0:00:44.9]} 22... h5
{[%clk 0:01:14.7]} 23. Rxe4 {[%clk 0:00:44.1]} 23... Rxe4 {[%clk 0:01:15.6]} 24.
Ne3 {[%clk 0:00:38.7]} 24... Bh6 {[%clk 0:01:07.8]} 25. b3 {[%clk 0:00:29.8]}
25... Qe7 {[%clk 0:00:58]} 26. Re1 {[%clk 0:00:29.1]} 26... a3 {[%clk
0:00:51.1]} 27. Nf5 {[%clk 0:00:23.1]} 27... gxf5 {[%clk 0:00:40.5]} 28. Rxe4
{[%clk 0:00:22.4]} 28... Qf8 {[%clk 0:00:08.5]} 29. Bf4 {[%clk 0:00:20]} 29...
fxe4 {[%clk 0:00:08.7]} 30. Bxh6 {[%clk 0:00:18.2]} 30... Qe7 {[%clk 0:00:09.4]}
31. Bg5 {[%clk 0:00:18]} 31... Qe5 {[%clk 0:00:09.2]} 32. Qe3 {[%clk 0:00:15.2]}
32... Nd7 {[%clk 0:00:08.8]} 33. Bf4 {[%clk 0:00:15.2]} 33... Qf6 {[%clk
0:00:08.1]} 34. Qg3+ {[%clk 0:00:16.1]} 34... Kh7 {[%clk 0:00:08]} 35. Bxd6
{[%clk 0:00:15.9]} 35... e3 {[%clk 0:00:06.8]} 36. fxe3 {[%clk 0:00:14.6]} 36...
Bc8 {[%clk 0:00:07.3]} 37. Bd3+ {[%clk 0:00:13.7]} 37... Kh8 {[%clk 0:00:07.8]}
38. Bf4 {[%clk 0:00:13]} 38... Qa1+ {[%clk 0:00:07.6]} 39. Kh2 {[%clk
0:00:12.5]} 39... Qg7 {[%clk 0:00:08.3]} 40. Qf3 {[%clk 0:00:11.4]} 40... Ne5
{[%clk 0:00:07.9]} 41. Qe4 {[%clk 0:00:08.8]} 41... Nxd3 {[%clk 0:00:07.2]} 42.
Qxd3 {[%clk 0:00:09.7]} 42... Qf6 {[%clk 0:00:05.5]} 43. Qe4 {[%clk 0:00:09.5]}
43... Qd8 {[%clk 0:00:03.1]} 44. Be5+ {[%clk 0:00:08.9]} 44... Kg8 {[%clk
0:00:03.8]} 45. Qf4 {[%clk 0:00:07.9]} 45... f5 {[%clk 0:00:02.2]} 46. Qh6
{[%clk 0:00:07.1]} 46... Qe7 {[%clk 0:00:01.7]} 47. Qh8+ {[%clk 0:00:06.7]}
47... Kf7 {[%clk 0:00:02.6]} 48. Qxh5+ {[%clk 0:00:06.7]} 48... Kf8 {[%clk
0:00:02.9]} 49. Qh6+ {[%clk 0:00:06]} 49... Ke8 {[%clk 0:00:03.1]} 50. Qc6+
{[%clk 0:00:06.2]} 50... Bd7 {[%clk 0:00:02.9]} 51. Qg6+ {[%clk 0:00:06.1]}
51... Kd8 {[%clk 0:00:02.9]} 52. Bf6 {[%clk 0:00:05.9]} 52... Be8 {[%clk
0:00:03.5]} 53. Bxe7+ {[%clk 0:00:05.8]} 53... Kxe7 {[%clk 0:00:04.4]} 54. Qe6+
{[%clk 0:00:06.2]} 54... Kf8 {[%clk 0:00:04.6]} 55. d6 {[%clk 0:00:06.5]} 55...
Bf7 {[%clk 0:00:05.5]} 56. Qe7+ {[%clk 0:00:06.9]} 56... Kg7 {[%clk 0:00:05.3]}
57. d7 {[%clk 0:00:07.8]} 57... Kg6 {[%clk 0:00:06.2]} 58. d8=Q {[%clk
0:00:08.2]} 58... f4 {[%clk 0:00:07.1]} 59. Qf6+ {[%clk 0:00:08.2]} 59... Kh5
{[%clk 0:00:07.3]} 60. Qh4+ {[%clk 0:00:08.5]} 60... Kg6 {[%clk 0:00:07.3]} 61.
Qdg5# {[%clk 0:00:09.4]} 1-0

[Event "Early-Titled-Tuesday-Blitz-December-26-2023"]
[Site "Chess.com"]
[Date "2023.12.26"]
[Round "5"]
[White "Flameboard08"]
[Black "ChessArchitect64"]
[Result "1-0"]
[WhiteElo "2556"]
[BlackElo "2293"]
[TimeControl "180+1"]
[EndTime "8:56:51 PST"]
[Termination "Flameboard08 won by checkmate"]

1. f4 {[%clk 0:03:00.9]} 1... e5 {[%clk 0:02:58.3]} 2. fxe5 {[%clk 0:03:00.1]}
2... d6 {[%clk 0:02:58.4]} 3. exd6 {[%clk 0:03:01]} 3... Bxd6 {[%clk 0:02:58.8]}
4. Nf3 {[%clk 0:03:01.6]} 4... g5 {[%clk 0:02:59]} 5. g3 {[%clk 0:03:02.3]} 5...
g4 {[%clk 0:02:57.3]} 6. Nh4 {[%clk 0:03:02.6]} 6... Ne7 {[%clk 0:02:57.9]} 7.
e4 {[%clk 0:03:00.3]} 7... Ng6 {[%clk 0:02:56.6]} 8. Nf5 {[%clk 0:03:00.3]} 8...
Bxf5 {[%clk 0:02:54.6]} 9. exf5 {[%clk 0:03:01.2]} 9... Ne5 {[%clk 0:02:50.7]}
10. Be2 {[%clk 0:02:53.7]} 10... Nbc6 {[%clk 0:02:40.6]} 11. c3 {[%clk
0:02:38.8]} 11... Qe7 {[%clk 0:02:36.6]} 12. O-O {[%clk 0:02:34.5]} 12... O-O-O
{[%clk 0:02:36.2]} 13. d4 {[%clk 0:02:34.7]} 13... h5 {[%clk 0:02:27.9]} 14. Kg2
{[%clk 0:02:25.7]} 14... h4 {[%clk 0:01:33.3]} 15. dxe5 {[%clk 0:02:24.9]} 15...
hxg3 {[%clk 0:01:30.3]} 16. hxg3 {[%clk 0:02:20]} 16... Qxe5 {[%clk 0:01:28.3]}
17. Bf4 {[%clk 0:01:57.3]} 17... Qe4+ {[%clk 0:01:26.9]} 18. Bf3 {[%clk
0:01:57.3]} 18... gxf3+ {[%clk 0:01:26]} 19. Qxf3 {[%clk 0:01:58.2]} 19... Qxf3+
{[%clk 0:01:23.1]} 20. Kxf3 {[%clk 0:01:58.1]} 20... Bxf4 {[%clk 0:01:19.9]} 21.
Kxf4 {[%clk 0:01:57.1]} 21... Rh2 {[%clk 0:01:20.4]} 22. b3 {[%clk 0:01:49.8]}
22... f6 {[%clk 0:01:00.7]} 23. Na3 {[%clk 0:01:48]} 23... Ne5 {[%clk
0:00:57.6]} 24. Rad1 {[%clk 0:01:40.5]} 24... Rg8 {[%clk 0:00:52.9]} 25. Rg1
{[%clk 0:01:35.5]} 25... Rxa2 {[%clk 0:00:50.5]} 26. Nc4 {[%clk 0:01:31.8]}
26... Rg4+ {[%clk 0:00:48.4]} 27. Ke3 {[%clk 0:01:31.3]} 27... Nxc4+ {[%clk
0:00:48.5]} 28. bxc4 {[%clk 0:01:31.4]} 28... Rxc4 {[%clk 0:00:48.8]} 29. Kd3
{[%clk 0:01:30.4]} 29... Rg4 {[%clk 0:00:43.8]} 30. Rde1 {[%clk 0:01:31]} 30...
Ra6 {[%clk 0:00:37.4]} 31. Re8+ {[%clk 0:01:17]} 31... Kd7 {[%clk 0:00:36.4]}
32. Rf8 {[%clk 0:01:17.9]} 32... Rd6+ {[%clk 0:00:36.2]} 33. Ke3 {[%clk
0:01:17.5]} 33... a5 {[%clk 0:00:26.5]} 34. Rf7+ {[%clk 0:01:12.6]} 34... Kc6
{[%clk 0:00:25]} 35. Ra1 {[%clk 0:01:09.2]} 35... Rxg3+ {[%clk 0:00:23.2]} 36.
Kf4 {[%clk 0:01:08.6]} 36... Rxc3 {[%clk 0:00:23.1]} 37. Ke4 {[%clk 0:01:06.2]}
37... Rc5 {[%clk 0:00:14.5]} 38. Kf4 {[%clk 0:01:01.5]} 38... Rd4+ {[%clk
0:00:13.5]} 39. Ke3 {[%clk 0:01:01.3]} 39... Rd6 {[%clk 0:00:13.6]} 40. Ke4
{[%clk 0:01:00.9]} 40... b6 {[%clk 0:00:13.9]} 41. Ra2 {[%clk 0:00:58.7]} 41...
Re5+ {[%clk 0:00:14.3]} 42. Kf4 {[%clk 0:00:57.5]} 42... Kb7 {[%clk 0:00:11]}
43. Rc2 {[%clk 0:00:56.3]} 43... Rc5 {[%clk 0:00:11.3]} 44. Re2 {[%clk
0:00:43.5]} 44... a4 {[%clk 0:00:10.9]} 45. Re6 {[%clk 0:00:39.1]} 45... a3
{[%clk 0:00:11.5]} 46. Rxd6 {[%clk 0:00:38.7]} 46... a2 {[%clk 0:00:11.9]} 47.
Rd1 {[%clk 0:00:37.3]} 47... Rc4+ {[%clk 0:00:12.1]} 48. Ke3 {[%clk 0:00:36.3]}
48... Rc6 {[%clk 0:00:08.4]} 49. Ra1 {[%clk 0:00:35.4]} 49... Rc2 {[%clk
0:00:08.3]} 50. Rxf6 {[%clk 0:00:34.6]} 50... b5 {[%clk 0:00:08.9]} 51. Kd3
{[%clk 0:00:22]} 51... Rf2 {[%clk 0:00:08.6]} 52. Kc3 {[%clk 0:00:21.2]} 52...
c5 {[%clk 0:00:08.7]} 53. Kb3 {[%clk 0:00:15.4]} 53... c4+ {[%clk 0:00:08.1]}
54. Kb4 {[%clk 0:00:15.1]} 54... Rb2+ {[%clk 0:00:07.8]} 55. Kc5 {[%clk
0:00:10.6]} 55... c3 {[%clk 0:00:07.2]} 56. Rg1 {[%clk 0:00:10.1]} 56... Rg2
{[%clk 0:00:01.9]} 57. Rxg2 {[%clk 0:00:09.1]} 57... a1=Q {[%clk 0:00:02.5]} 58.
Rg7+ {[%clk 0:00:09.4]} 58... Ka8 {[%clk 0:00:02.2]} 59. Rf8# {[%clk 0:00:10.3]}
1-0

[Event "Early-Titled-Tuesday-Blitz-December-26-2023"]
[Site "Chess.com"]
[Date "2023.12.26"]
[Round "5"]
[White "Grammnik"]
[Black "RamyresCoelho"]
[Result "0-1"]
[WhiteElo "2197"]
[BlackElo "2301"]
[TimeControl "180+1"]
[EndTime "8:56:53 PST"]
[Termination "RamyresCoelho won by checkmate"]

1. d4 {[%clk 0:01:12.8]} 1... Nf6 {[%clk 0:02:59.6]} 2. Nf3 {[%clk 0:01:12.3]}
2... g6 {[%clk 0:03:00]} 3. c4 {[%clk 0:01:13.2]} 3... Bg7 {[%clk 0:03:00.3]} 4.
Nc3 {[%clk 0:01:13.9]} 4... O-O {[%clk 0:03:01.2]} 5. e4 {[%clk 0:01:14.2]} 5...
d6 {[%clk 0:03:02.1]} 6. Be2 {[%clk 0:01:14.8]} 6... c6 {[%clk 0:03:02.3]} 7.
O-O {[%clk 0:01:15.7]} 7... Nbd7 {[%clk 0:03:02.6]} 8. Re1 {[%clk 0:01:15.7]}
8... e5 {[%clk 0:03:03.1]} 9. d5 {[%clk 0:01:16]} 9... c5 {[%clk 0:03:01.9]} 10.
a3 {[%clk 0:01:14.7]} 10... a6 {[%clk 0:02:59.5]} 11. Bg5 {[%clk 0:01:14.4]}
11... h6 {[%clk 0:02:59.1]} 12. Bxf6 {[%clk 0:01:14.1]} 12... Nxf6 {[%clk
0:03:00]} 13. b4 {[%clk 0:01:14]} 13... b6 {[%clk 0:02:59.5]} 14. bxc5 {[%clk
0:01:13.9]} 14... bxc5 {[%clk 0:03:00.4]} 15. Nd2 {[%clk 0:01:13.6]} 15... Rb8
{[%clk 0:02:58.4]} 16. Rb1 {[%clk 0:01:12.4]} 16... Bd7 {[%clk 0:02:56.5]} 17.
Qc2 {[%clk 0:01:11.1]} 17... Qc7 {[%clk 0:02:56.2]} 18. Rxb8 {[%clk 0:01:09.7]}
18... Rxb8 {[%clk 0:02:57.1]} 19. Rb1 {[%clk 0:01:09.6]} 19... Rxb1+ {[%clk
0:02:57.2]} 20. Qxb1 {[%clk 0:01:09.7]} 20... Qa5 {[%clk 0:02:55.4]} 21. Qb2
{[%clk 0:01:09.2]} 21... Bg4 {[%clk 0:02:50.9]} 22. Nb3 {[%clk 0:00:58]} 22...
Qb6 {[%clk 0:02:48.3]} 23. Na4 {[%clk 0:00:56]} 23... Qb7 {[%clk 0:02:44.1]} 24.
Bxg4 {[%clk 0:00:54.3]} 24... Nxg4 {[%clk 0:02:45]} 25. Qc3 {[%clk 0:00:54.5]}
25... Nf6 {[%clk 0:02:43.6]} 26. h3 {[%clk 0:00:53.3]} 26... Nxe4 {[%clk
0:02:43.3]} 27. Qc2 {[%clk 0:00:52.1]} 27... Nf6 {[%clk 0:02:36.7]} 28. Na5
{[%clk 0:00:51.7]} 28... Qc7 {[%clk 0:02:34]} 29. Nc6 {[%clk 0:00:51.5]} 29...
Kh7 {[%clk 0:02:25]} 30. Nc3 {[%clk 0:00:51.4]} 30... Nd7 {[%clk 0:02:21.9]} 31.
Qa4 {[%clk 0:00:49.8]} 31... Qb6 {[%clk 0:02:12]} 32. Qc2 {[%clk 0:00:49.2]}
32... f5 {[%clk 0:02:05.1]} 33. h4 {[%clk 0:00:48.9]} 33... h5 {[%clk
0:02:04.6]} 34. Ne2 {[%clk 0:00:42.3]} 34... e4 {[%clk 0:02:01.5]} 35. Nf4
{[%clk 0:00:41.8]} 35... Ne5 {[%clk 0:01:58.6]} 36. Ne7 {[%clk 0:00:35.2]} 36...
Qa5 {[%clk 0:01:51.5]} 37. Qe2 {[%clk 0:00:33.4]} 37... Qxa3 {[%clk 0:01:47.4]}
38. Nxh5 {[%clk 0:00:32.9]} 38... Qc1+ {[%clk 0:01:41.2]} 39. Kh2 {[%clk
0:00:32.1]} 39... gxh5 {[%clk 0:01:40.5]} 40. Qxh5+ {[%clk 0:00:31.3]} 40... Qh6
{[%clk 0:01:41]} 41. Qxf5+ {[%clk 0:00:31.2]} 41... Kh8 {[%clk 0:01:33.5]} 42.
g3 {[%clk 0:00:29.4]} 42... Nf3+ {[%clk 0:01:14.6]} 43. Kg2 {[%clk 0:00:26.2]}
43... Ne5 {[%clk 0:01:01]} 44. Qc8+ {[%clk 0:00:24.2]} 44... Bf8 {[%clk
0:00:59.5]} 45. Qe8 {[%clk 0:00:22.5]} 45... Qf6 {[%clk 0:00:52.7]} 46. Qh5+
{[%clk 0:00:14.6]} 46... Bh6 {[%clk 0:00:46.3]} 47. Nf5 {[%clk 0:00:14]} 47...
Nf7 {[%clk 0:00:42.3]} 48. g4 {[%clk 0:00:11.3]} 48... Kg8 {[%clk 0:00:39.2]}
49. Nxh6+ {[%clk 0:00:03.4]} 49... Qxh6 {[%clk 0:00:36.7]} 50. Qf5 {[%clk
0:00:03]} 50... Qxh4 {[%clk 0:00:34.1]} 51. Qg6+ {[%clk 0:00:03.2]} 51... Kf8
{[%clk 0:00:34.1]} 52. Qe6 {[%clk 0:00:03.3]} 52... Qe7 {[%clk 0:00:31.6]} 53.
Qc8+ {[%clk 0:00:03]} 53... Kg7 {[%clk 0:00:31.3]} 54. Qxa6 {[%clk 0:00:03.7]}
54... Ne5 {[%clk 0:00:29.6]} 55. Qc8 {[%clk 0:00:03.6]} 55... Qf7 {[%clk
0:00:28.7]} 56. Kg3 {[%clk 0:00:03.1]} 56... Qf3+ {[%clk 0:00:27.8]} 57. Kh4
{[%clk 0:00:03.5]} 57... Ng6+ {[%clk 0:00:24.9]} 58. Kh5 {[%clk 0:00:01.9]}
58... Qh3+ {[%clk 0:00:24]} 59. Kg5 {[%clk 0:00:02]} 59... Qh4+ {[%clk
0:00:24.2]} 60. Kf5 {[%clk 0:00:02.4]} 60... Qxf2+ {[%clk 0:00:23.2]} 61. Kxe4
{[%clk 0:00:02.3]} 61... Qe2+ {[%clk 0:00:22.6]} 62. Kf5 {[%clk 0:00:02.1]}
62... Qe5# {[%clk 0:00:22.4]} 0-1

[Event "Early-Titled-Tuesday-Blitz-December-26-2023"]
[Site "Chess.com"]
[Date "2023.12.26"]
[Round "5"]
[White "PabloZarnicki"]
[Black "CarlosjPineror"]
[Result "0-1"]
[WhiteElo "2640"]
[BlackElo "2502"]
[TimeControl "180+1"]
[EndTime "8:56:57 PST"]
[Termination "CarlosjPineror won by checkmate"]

1. e4 {[%clk 0:03:00.9]} 1... c5 {[%clk 0:02:58.7]} 2. Nf3 {[%clk 0:03:00.2]}
2... e6 {[%clk 0:02:51.6]} 3. b3 {[%clk 0:02:59.2]} 3... b6 {[%clk 0:02:47]} 4.
d4 {[%clk 0:02:47.9]} 4... cxd4 {[%clk 0:02:46.4]} 5. Nxd4 {[%clk 0:02:48.7]}
5... Bb7 {[%clk 0:02:44.8]} 6. Nb5 {[%clk 0:02:48]} 6... Bxe4 {[%clk 0:02:20.6]}
7. Bf4 {[%clk 0:02:43.5]} 7... Na6 {[%clk 0:02:00.2]} 8. Nd6+ {[%clk 0:02:23.5]}
8... Bxd6 {[%clk 0:01:59.4]} 9. Bxd6 {[%clk 0:02:24.4]} 9... Qf6 {[%clk
0:01:50.4]} 10. Nd2 {[%clk 0:02:13.2]} 10... Bb7 {[%clk 0:01:47.9]} 11. Nc4
{[%clk 0:02:12.9]} 11... Qc3+ {[%clk 0:01:28.3]} 12. Ke2 {[%clk 0:02:04.2]}
12... Bd5 {[%clk 0:01:24.4]} 13. Qd3 {[%clk 0:01:32.9]} 13... Qxa1 {[%clk
0:01:21]} 14. f3 {[%clk 0:00:53]} 14... Rc8 {[%clk 0:01:05.5]} 15. Ne3 {[%clk
0:00:51]} 15... Bb7 {[%clk 0:01:00.4]} 16. Kf2 {[%clk 0:00:37.2]} 16... Qc3
{[%clk 0:00:55.8]} 17. Qxc3 {[%clk 0:00:35.3]} 17... Rxc3 {[%clk 0:00:53.1]} 18.
Be5 {[%clk 0:00:36.2]} 18... Rxe3 {[%clk 0:00:46]} 19. Bxg7 {[%clk 0:00:36.1]}
19... Rc3 {[%clk 0:00:24.5]} 20. Bxc3 {[%clk 0:00:31.7]} 20... f6 {[%clk
0:00:24.6]} 21. Bb5 {[%clk 0:00:30.9]} 21... Nc7 {[%clk 0:00:22.4]} 22. Bd3
{[%clk 0:00:24.8]} 22... Ba6 {[%clk 0:00:19.6]} 23. Bxa6 {[%clk 0:00:21.1]}
23... Nxa6 {[%clk 0:00:20.5]} 24. Rd1 {[%clk 0:00:21.5]} 24... Ke7 {[%clk
0:00:19.8]} 25. Rd4 {[%clk 0:00:19.7]} 25... Nc5 {[%clk 0:00:18.3]} 26. b4
{[%clk 0:00:15.9]} 26... Nb7 {[%clk 0:00:17.4]} 27. Rc4 {[%clk 0:00:12.7]} 27...
Nd6 {[%clk 0:00:14]} 28. Rg4 {[%clk 0:00:12]} 28... Kf7 {[%clk 0:00:13.5]} 29.
Rf4 {[%clk 0:00:10.5]} 29... h5 {[%clk 0:00:11.2]} 30. h4 {[%clk 0:00:09.6]}
30... Rh6 {[%clk 0:00:10.6]} 31. g4 {[%clk 0:00:09.6]} 31... hxg4 {[%clk
0:00:10.6]} 32. fxg4 {[%clk 0:00:10]} 32... Rxh4 {[%clk 0:00:10.8]} 33. Kg3
{[%clk 0:00:10.3]} 33... Rh6 {[%clk 0:00:10.7]} 34. Kf3 {[%clk 0:00:10.2]} 34...
Rg6 {[%clk 0:00:10.1]} 35. Rd4 {[%clk 0:00:10.7]} 35... Ke7 {[%clk 0:00:09.7]}
36. b5 {[%clk 0:00:11]} 36... Nxb5 {[%clk 0:00:09.1]} 37. Bb4+ {[%clk
0:00:11.7]} 37... d6 {[%clk 0:00:09.6]} 38. Rc4 {[%clk 0:00:11.9]} 38... Kd7
{[%clk 0:00:10]} 39. a4 {[%clk 0:00:10.9]} 39... Nc7 {[%clk 0:00:10.5]} 40. Rd4
{[%clk 0:00:11.5]} 40... d5 {[%clk 0:00:11]} 41. c4 {[%clk 0:00:12]} 41... Ne7
{[%clk 0:00:11.3]} 42. a5 {[%clk 0:00:12.2]} 42... bxa5 {[%clk 0:00:11.3]} 43.
Bxa5 {[%clk 0:00:13.1]} 43... Nc6 {[%clk 0:00:12.1]} 44. Rd1 {[%clk 0:00:10.9]}
44... Nxa5 {[%clk 0:00:12.3]} 45. Ra1 {[%clk 0:00:11.8]} 45... Nc6 {[%clk
0:00:12.1]} 46. c5 {[%clk 0:00:11.2]} 46... e5 {[%clk 0:00:12.1]} 47. Rh1 {[%clk
0:00:10.3]} 47... d4 {[%clk 0:00:12.2]} 48. Rh7+ {[%clk 0:00:10.9]} 48... Kc8
{[%clk 0:00:12.8]} 49. Ke4 {[%clk 0:00:10.5]} 49... Rxg4+ {[%clk 0:00:12.5]} 50.
Kf5 {[%clk 0:00:11]} 50... Rf4+ {[%clk 0:00:13]} 51. Kg6 {[%clk 0:00:11.4]}
51... d3 {[%clk 0:00:13.6]} 52. Rh2 {[%clk 0:00:10.6]} 52... Rd4 {[%clk
0:00:13.7]} 53. Rd2 {[%clk 0:00:09.2]} 53... e4 {[%clk 0:00:13.8]} 54. Kf5
{[%clk 0:00:09.5]} 54... e3 {[%clk 0:00:14.2]} 55. Rh2 {[%clk 0:00:09.1]} 55...
d2 {[%clk 0:00:14.1]} 56. Kg6 {[%clk 0:00:08.7]} 56... d1=Q {[%clk 0:00:14.2]}
57. Kf7 {[%clk 0:00:09.6]} 57... Qb3+ {[%clk 0:00:13.9]} 58. Kf8 {[%clk
0:00:09.5]} 58... Rd8+ {[%clk 0:00:13.3]} 59. Kg7 {[%clk 0:00:09.9]} 59... Qg8+
{[%clk 0:00:13.8]} 60. Kxf6 {[%clk 0:00:09.7]} 60... Nd5+ {[%clk 0:00:14.3]} 61.
Kf5 {[%clk 0:00:09.3]} 61... Re8 {[%clk 0:00:14]} 62. Rh6 {[%clk 0:00:08.1]}
62... Nd4# {[%clk 0:00:12.9]} 0-1